[Event "*** SCC Grand Prix: Titled Tuesday Blitz"]
[Site "Chess.com"]
[Date "2020.06.02"]
[Round "9"]
[White "verdest"]
[Black "Grandmaster2B"]
[Result "1-0"]
[WhiteElo "2569"]
[BlackElo "2424"]
[TimeControl "180+1"]
[EndTime "11:47:54 PDT"]
[Termination "verdest won by resignation"]

1. d4 {[%clk 0:03:00.9]} 1... Nf6 {[%clk 0:02:59.6]} 2. c4 {[%clk 0:03:00.3]}
2... e6 {[%clk 0:02:59.9]} 3. Nf3 {[%clk 0:02:59.7]} 3... b6 {[%clk 0:02:59.9]}
4. g3 {[%clk 0:02:59.2]} 4... Ba6 {[%clk 0:02:57.5]} 5. b3 {[%clk 0:02:56.1]}
5... Bb7 {[%clk 0:02:57.8]} 6. Bg2 {[%clk 0:02:55.5]} 6... Bb4+ {[%clk
0:02:56.1]} 7. Bd2 {[%clk 0:02:54.9]} 7... c5 {[%clk 0:02:56.7]} 8. Bxb4 {[%clk
0:02:50.8]} 8... cxb4 {[%clk 0:02:57.6]} 9. O-O {[%clk 0:02:49.9]} 9... O-O
{[%clk 0:02:58.2]} 10. a3 {[%clk 0:02:43.4]} 10... a5 {[%clk 0:02:57.2]} 11.
axb4 {[%clk 0:02:38]} 11... axb4 {[%clk 0:02:58.1]} 12. Rxa8 {[%clk 0:02:37.3]}
12... Bxa8 {[%clk 0:02:59]} 13. Nbd2 {[%clk 0:02:33.3]} 13... d6 {[%clk
0:02:55.1]} 14. Qc2 {[%clk 0:02:32.3]} 14... Qc7 {[%clk 0:02:52.5]} 15. Ra1
{[%clk 0:02:31.3]} 15... Bb7 {[%clk 0:02:49.4]} 16. Qd3 {[%clk 0:02:24.7]} 16...
Nbd7 {[%clk 0:02:45.3]} 17. Ne1 {[%clk 0:02:20.7]} 17... Bxg2 {[%clk 0:02:41.3]}
18. Kxg2 {[%clk 0:02:21.6]} 18... e5 {[%clk 0:02:41.5]} 19. Nc2 {[%clk
0:02:12.7]} 19... exd4 {[%clk 0:01:56.6]} 20. Qxd4 {[%clk 0:02:08.3]} 20... Qc5
{[%clk 0:01:50.5]} 21. Nf3 {[%clk 0:01:58]} 21... Re8 {[%clk 0:01:37.7]} 22. e3
{[%clk 0:01:51.3]} 22... d5 {[%clk 0:01:26]} 23. Qxc5 {[%clk 0:01:11.8]} 23...
bxc5 {[%clk 0:01:18.1]} 24. cxd5 {[%clk 0:01:09.2]} 24... Nxd5 {[%clk 0:01:19]}
25. Rd1 {[%clk 0:01:06.5]} 25... N7b6 {[%clk 0:01:17.2]} 26. Nfe1 {[%clk
0:00:59.8]} 26... Rd8 {[%clk 0:00:56.5]} 27. Kf3 {[%clk 0:00:53.7]} 27... Kf8
{[%clk 0:00:46.9]} 28. e4 {[%clk 0:00:48.6]} 28... c4 {[%clk 0:00:28.3]} 29.
exd5 {[%clk 0:00:46]} 29... cxb3 {[%clk 0:00:26.3]} 30. Nxb4 {[%clk 0:00:45.6]}
30... b2 {[%clk 0:00:21.3]} 31. Ned3 {[%clk 0:00:36.1]} 31... Na4 {[%clk
0:00:20.9]} 32. Rb1 {[%clk 0:00:33.2]} 32... Rb8 {[%clk 0:00:18]} 33. d6 {[%clk
0:00:22.9]} 33... Ke8 {[%clk 0:00:16.4]} 34. Kf4 {[%clk 0:00:15.8]} 34... Kd7
{[%clk 0:00:14.4]} 35. Ke5 {[%clk 0:00:15.8]} 35... Rb5+ {[%clk 0:00:03.8]} 36.
Kd4 {[%clk 0:00:13.9]} 36... Rb8 {[%clk 0:00:03.2]} 37. Kc4 {[%clk 0:00:12.3]}
37... Rc8+ {[%clk 0:00:02.3]} 38. Kb3 {[%clk 0:00:11.1]} 38... Nc3 {[%clk
0:00:02.8]} 39. Rxb2 {[%clk 0:00:11.3]} 39... Nd1 {[%clk 0:00:03.7]} 40. Rd2
{[%clk 0:00:09.3]} 40... Rc3+ {[%clk 0:00:03.1]} 41. Ka2 {[%clk 0:00:08.7]} 1-0

[Event "*** SCC Grand Prix: Titled Tuesday Blitz"]
[Site "Chess.com"]
[Date "2020.06.02"]
[Round "9"]
[White "WPWPWP-2015"]
[Black "Muradore"]
[Result "1/2-1/2"]
[WhiteElo "2379"]
[BlackElo "2613"]
[TimeControl "180+1"]
[EndTime "11:47:56 PDT"]
[Termination "Game drawn by stalemate"]

1. e4 {[%clk 0:02:58.9]} 1... c6 {[%clk 0:02:59.3]} 2. d4 {[%clk 0:02:57]} 2...
d5 {[%clk 0:02:59.7]} 3. e5 {[%clk 0:02:57.9]} 3... c5 {[%clk 0:02:59.6]} 4. c4
{[%clk 0:02:56.8]} 4... Nc6 {[%clk 0:02:58.9]} 5. Nf3 {[%clk 0:02:56.3]} 5...
Bg4 {[%clk 0:02:59.1]} 6. cxd5 {[%clk 0:02:54.7]} 6... Bxf3 {[%clk 0:02:59.1]}
7. Qxf3 {[%clk 0:02:48.1]} 7... Nxd4 {[%clk 0:02:58.9]} 8. Qe4 {[%clk
0:02:47.6]} 8... f5 {[%clk 0:02:59.1]} 9. exf6 {[%clk 0:02:14.6]} 9... Nxf6
{[%clk 0:02:58.9]} 10. Qd3 {[%clk 0:02:05.2]} 10... Qxd5 {[%clk 0:02:54.1]} 11.
Nc3 {[%clk 0:02:04.2]} 11... Qe5+ {[%clk 0:02:51.8]} 12. Be3 {[%clk 0:02:03.5]}
12... O-O-O {[%clk 0:02:50.4]} 13. Qc4 {[%clk 0:01:58.5]} 13... Ng4 {[%clk
0:02:39.4]} 14. O-O-O {[%clk 0:01:48.8]} 14... Nxe3 {[%clk 0:02:38.7]} 15. fxe3
{[%clk 0:01:47.8]} 15... Qxe3+ {[%clk 0:02:38.9]} 16. Kb1 {[%clk 0:01:46.8]}
16... e6 {[%clk 0:02:39.3]} 17. Bd3 {[%clk 0:01:39.4]} 17... Be7 {[%clk
0:02:39]} 18. Rhe1 {[%clk 0:01:38]} 18... Qg5 {[%clk 0:02:38.3]} 19. Ne4 {[%clk
0:00:45.8]} 19... Qd5 {[%clk 0:02:37.3]} 20. Qa4 {[%clk 0:00:30]} 20... Kb8
{[%clk 0:02:35.8]} 21. Bc4 {[%clk 0:00:27.2]} 21... Qf5 {[%clk 0:02:27.8]} 22.
Bd3 {[%clk 0:00:26.6]} 22... Qh5 {[%clk 0:02:23.8]} 23. Qc4 {[%clk 0:00:21.7]}
23... Rd7 {[%clk 0:02:18.3]} 24. Nc3 {[%clk 0:00:20.5]} 24... Rhd8 {[%clk
0:02:15.6]} 25. Be4 {[%clk 0:00:20.2]} 25... Bf6 {[%clk 0:02:06.3]} 26. a3
{[%clk 0:00:19.2]} 26... Rd6 {[%clk 0:02:02.5]} 27. Ka2 {[%clk 0:00:18.9]} 27...
a6 {[%clk 0:01:56.8]} 28. g4 {[%clk 0:00:15.9]} 28... Qf7 {[%clk 0:01:43.7]} 29.
Qxc5 {[%clk 0:00:15.4]} 29... Qc7 {[%clk 0:01:43.5]} 30. Qxc7+ {[%clk
0:00:13.6]} 30... Kxc7 {[%clk 0:01:43.4]} 31. Bxh7 {[%clk 0:00:14.2]} 31... Nf3
{[%clk 0:01:35.8]} 32. Rxd6 {[%clk 0:00:12.4]} 32... Rxd6 {[%clk 0:01:35.3]} 33.
Rc1 {[%clk 0:00:12.2]} 33... Kb8 {[%clk 0:01:26.9]} 34. Ne4 {[%clk 0:00:12.2]}
34... Rd4 {[%clk 0:01:18.6]} 35. Nxf6 {[%clk 0:00:11.8]} 35... gxf6 {[%clk
0:01:18.5]} 36. h3 {[%clk 0:00:11.9]} 36... Ng5 {[%clk 0:01:18.5]} 37. Bc2
{[%clk 0:00:08.9]} 37... Nxh3 {[%clk 0:01:18]} 38. Rf1 {[%clk 0:00:08.5]} 38...
Rf4 {[%clk 0:01:14.9]} 39. Rh1 {[%clk 0:00:08.5]} 39... Nf2 {[%clk 0:01:11]} 40.
Rh8+ {[%clk 0:00:07.6]} 40... Ka7 {[%clk 0:01:10.6]} 41. Bb3 {[%clk 0:00:07.2]}
41... Re4 {[%clk 0:01:07.1]} 42. Re8 {[%clk 0:00:06.3]} 42... Nxg4 {[%clk
0:01:05.3]} 43. Bxe6 {[%clk 0:00:04.9]} 43... f5 {[%clk 0:01:03]} 44. Re7 {[%clk
0:00:04.8]} 44... Ne3 {[%clk 0:01:00.8]} 45. Kb3 {[%clk 0:00:04.7]} 45... Nd5
{[%clk 0:00:58.9]} 46. Rxb7+ {[%clk 0:00:04.1]} 46... Kxb7 {[%clk 0:00:57.5]}
47. Bxd5+ {[%clk 0:00:04.3]} 47... Kb6 {[%clk 0:00:57.7]} 48. Bxe4 {[%clk
0:00:04.4]} 48... fxe4 {[%clk 0:00:58.6]} 49. Kc4 {[%clk 0:00:05]} 49... Ka5
{[%clk 0:00:59]} 50. b3 {[%clk 0:00:04.2]} 50... e3 {[%clk 0:00:54.5]} 51. Kd3
{[%clk 0:00:04.2]} 51... Kb5 {[%clk 0:00:55.4]} 52. Kxe3 {[%clk 0:00:04.4]}
52... Kc5 {[%clk 0:00:56.3]} 53. Ke4 {[%clk 0:00:04.6]} 53... Kc6 {[%clk
0:00:55.8]} 54. Kd4 {[%clk 0:00:04.5]} 54... Kb5 {[%clk 0:00:56.2]} 55. Kd5
{[%clk 0:00:04.6]} 55... Kb6 {[%clk 0:00:55]} 56. Kd6 {[%clk 0:00:03.7]} 56...
Kb5 {[%clk 0:00:55]} 57. Kd5 {[%clk 0:00:03.7]} 57... Kb6 {[%clk 0:00:55]} 58.
Kc4 {[%clk 0:00:03.6]} 58... Ka5 {[%clk 0:00:54.4]} 59. a4 {[%clk 0:00:02.5]}
59... Kb6 {[%clk 0:00:54.5]} 60. b4 {[%clk 0:00:02.8]} 60... Kc6 {[%clk
0:00:54.9]} 61. Kd4 {[%clk 0:00:03.1]} 61... Kd6 {[%clk 0:00:55.2]} 62. Kc4
{[%clk 0:00:02.9]} 62... Kc6 {[%clk 0:00:55.5]} 63. a5 {[%clk 0:00:02.9]} 63...
Kd6 {[%clk 0:00:54.9]} 64. b5 {[%clk 0:00:03.1]} 64... axb5+ {[%clk 0:00:55]}
65. Kxb5 {[%clk 0:00:03.5]} 65... Kc7 {[%clk 0:00:55.9]} 66. a6 {[%clk
0:00:03.9]} 66... Kb8 {[%clk 0:00:56.1]} 67. Kb6 {[%clk 0:00:04.6]} 67... Ka8
{[%clk 0:00:57]} 68. a7 {[%clk 0:00:05.3]} 1/2-1/2

[Event "*** SCC Grand Prix: Titled Tuesday Blitz"]
[Site "Chess.com"]
[Date "2020.06.02"]
[Round "9"]
[White "ENEASZ"]
[Black "zajka-molotok"]
[Result "0-1"]
[WhiteElo "2477"]
[BlackElo "2384"]
[TimeControl "180+1"]
[EndTime "11:47:56 PDT"]
[Termination "zajka-molotok won on time"]

1. e4 {[%clk 0:01:15.7]} 1... c5 {[%clk 0:02:55.4]} 2. c3 {[%clk 0:01:15.7]}
2... Nf6 {[%clk 0:02:51.8]} 3. e5 {[%clk 0:01:15.3]} 3... Nd5 {[%clk 0:02:51.7]}
4. d4 {[%clk 0:01:16.2]} 4... cxd4 {[%clk 0:02:50.7]} 5. cxd4 {[%clk 0:01:17.1]}
5... d6 {[%clk 0:02:50.7]} 6. Bc4 {[%clk 0:01:17]} 6... Nb6 {[%clk 0:02:44.2]}
7. Bb5+ {[%clk 0:01:17.3]} 7... Bd7 {[%clk 0:02:42]} 8. e6 {[%clk 0:01:17.8]}
8... fxe6 {[%clk 0:02:35.9]} 9. Bd3 {[%clk 0:01:17.1]} 9... g6 {[%clk
0:02:25.6]} 10. h4 {[%clk 0:01:16.9]} 10... Bc6 {[%clk 0:02:20.4]} 11. h5 {[%clk
0:01:15.5]} 11... gxh5 {[%clk 0:02:10.1]} 12. Qxh5+ {[%clk 0:01:12]} 12... Kd7
{[%clk 0:02:10.3]} 13. Nf3 {[%clk 0:01:12.9]} 13... Na6 {[%clk 0:02:04.5]} 14.
Nc3 {[%clk 0:01:05.9]} 14... Nb4 {[%clk 0:02:00.7]} 15. Bb1 {[%clk 0:01:05.9]}
15... Kc7 {[%clk 0:01:26]} 16. Ng5 {[%clk 0:00:53.1]} 16... Qd7 {[%clk
0:01:24.7]} 17. Qh3 {[%clk 0:00:45.5]} 17... Kb8 {[%clk 0:00:41.7]} 18. Qxe6
{[%clk 0:00:33.6]} 18... Bg7 {[%clk 0:00:33]} 19. Qxd7 {[%clk 0:00:28.9]} 19...
Bxd7 {[%clk 0:00:28.1]} 20. a3 {[%clk 0:00:24.5]} 20... N4d5 {[%clk 0:00:26.3]}
21. Nxd5 {[%clk 0:00:23.9]} 21... Nxd5 {[%clk 0:00:26.1]} 22. Be4 {[%clk
0:00:23.7]} 22... Nb6 {[%clk 0:00:18.9]} 23. Be3 {[%clk 0:00:17.6]} 23... Nc4
{[%clk 0:00:18.7]} 24. Rxh7 {[%clk 0:00:14.3]} 24... Rxh7 {[%clk 0:00:18.2]} 25.
Nxh7 {[%clk 0:00:11.3]} 25... Nxe3 {[%clk 0:00:18.1]} 26. fxe3 {[%clk
0:00:12.2]} 26... Bc6 {[%clk 0:00:16.7]} 27. Bxc6 {[%clk 0:00:11.5]} 27... bxc6
{[%clk 0:00:16.9]} 28. Ng5 {[%clk 0:00:12.4]} 28... Kb7 {[%clk 0:00:16.1]} 29.
Kd2 {[%clk 0:00:11.6]} 29... Bf6 {[%clk 0:00:15.9]} 30. Ne4 {[%clk 0:00:10.9]}
30... Rg8 {[%clk 0:00:14.8]} 31. g3 {[%clk 0:00:09.5]} 31... d5 {[%clk
0:00:13.9]} 32. Nc5+ {[%clk 0:00:07.6]} 32... Kc7 {[%clk 0:00:13.3]} 33. Rg1
{[%clk 0:00:08.5]} 33... Kd6 {[%clk 0:00:12.8]} 34. Nd3 {[%clk 0:00:07.5]} 34...
Rg4 {[%clk 0:00:12.4]} 35. Ke2 {[%clk 0:00:06.7]} 35... e5 {[%clk 0:00:12.5]}
36. Kf3 {[%clk 0:00:06]} 36... Rg7 {[%clk 0:00:11.4]} 37. dxe5+ {[%clk
0:00:06.3]} 37... Bxe5 {[%clk 0:00:12]} 38. Nxe5 {[%clk 0:00:06.5]} 38... Kxe5
{[%clk 0:00:12.4]} 39. Rh1 {[%clk 0:00:06.2]} 39... Rf7+ {[%clk 0:00:11.4]} 40.
Ke2 {[%clk 0:00:06.3]} 40... Rg7 {[%clk 0:00:11.1]} 41. Kf3 {[%clk 0:00:06.1]}
41... Rf7+ {[%clk 0:00:10.7]} 42. Kg2 {[%clk 0:00:03.6]} 42... Rg7 {[%clk
0:00:10]} 43. Rh6 {[%clk 0:00:03.3]} 43... c5 {[%clk 0:00:09.6]} 44. Ra6 {[%clk
0:00:02.7]} 44... Ke4 {[%clk 0:00:09.7]} 45. Re6+ {[%clk 0:00:02.1]} 45... Kd3
{[%clk 0:00:09.5]} 46. Re5 {[%clk 0:00:02.4]} 46... d4 {[%clk 0:00:09.5]} 47.
exd4 {[%clk 0:00:03.3]} 47... cxd4 {[%clk 0:00:09.7]} 48. Kf3 {[%clk 0:00:03.4]}
48... Rf7+ {[%clk 0:00:09.1]} 49. Kg4 {[%clk 0:00:02.6]} 49... Kc2 {[%clk
0:00:09.3]} 0-1

[Event "*** SCC Grand Prix: Titled Tuesday Blitz"]
[Site "Chess.com"]
[Date "2020.06.02"]
[Round "9"]
[White "DivyaDeshmukh23"]
[Black "GMaka"]
[Result "1/2-1/2"]
[WhiteElo "2473"]
[BlackElo "2363"]
[TimeControl "180+1"]
[EndTime "11:47:56 PDT"]
[Termination "Game drawn by repetition"]

1. e4 {[%clk 0:03:00.9]} 1... c5 {[%clk 0:03:00.9]} 2. Nf3 {[%clk 0:02:59.7]}
2... g6 {[%clk 0:03:01.1]} 3. d4 {[%clk 0:02:59.1]} 3... Bg7 {[%clk 0:03:01.6]}
4. c3 {[%clk 0:02:55.2]} 4... cxd4 {[%clk 0:03:01]} 5. cxd4 {[%clk 0:02:56.1]}
5... d5 {[%clk 0:03:01.7]} 6. e5 {[%clk 0:02:49.7]} 6... Nc6 {[%clk 0:02:59.7]}
7. Nc3 {[%clk 0:02:47.7]} 7... Bg4 {[%clk 0:02:59.8]} 8. Be2 {[%clk 0:02:42.5]}
8... e6 {[%clk 0:02:59.5]} 9. O-O {[%clk 0:02:39.4]} 9... Nge7 {[%clk
0:02:59.1]} 10. h3 {[%clk 0:02:26]} 10... Bxf3 {[%clk 0:02:58.8]} 11. Bxf3
{[%clk 0:02:26.9]} 11... Nf5 {[%clk 0:02:59.5]} 12. Be3 {[%clk 0:02:23.4]} 12...
O-O {[%clk 0:02:58.2]} 13. Bg4 {[%clk 0:02:17.5]} 13... Qb6 {[%clk 0:02:42.3]}
14. Bxf5 {[%clk 0:02:13.3]} 14... gxf5 {[%clk 0:02:39.2]} 15. Ne2 {[%clk
0:01:43.5]} 15... Kh8 {[%clk 0:02:24.8]} 16. Nf4 {[%clk 0:01:41.8]} 16... Bh6
{[%clk 0:02:20.3]} 17. Nh5 {[%clk 0:01:39.2]} 17... Bxe3 {[%clk 0:02:16.1]} 18.
fxe3 {[%clk 0:01:40.1]} 18... Rg8 {[%clk 0:02:15.7]} 19. Nf6 {[%clk 0:01:30.2]}
19... Rg7 {[%clk 0:01:54.5]} 20. b3 {[%clk 0:01:24.5]} 20... Ne7 {[%clk
0:01:48.8]} 21. Qh5 {[%clk 0:01:23.3]} 21... Ng8 {[%clk 0:01:46.9]} 22. Qh4
{[%clk 0:00:29.6]} 22... Nxf6 {[%clk 0:01:41.7]} 23. Qxf6 {[%clk 0:00:30.5]}
23... Kg8 {[%clk 0:01:33.2]} 24. Rac1 {[%clk 0:00:26.8]} 24... Rg6 {[%clk
0:01:27.2]} 25. Qe7 {[%clk 0:00:26.8]} 25... Qd8 {[%clk 0:01:27.3]} 26. Qxd8+
{[%clk 0:00:22.3]} 26... Rxd8 {[%clk 0:01:28.2]} 27. Rc7 {[%clk 0:00:23.2]}
27... Rb8 {[%clk 0:01:25]} 28. Rfc1 {[%clk 0:00:21.9]} 28... Rg3 {[%clk
0:01:20.8]} 29. Kf2 {[%clk 0:00:21.8]} 29... f4 {[%clk 0:01:21.2]} 30. exf4
{[%clk 0:00:09.4]} 30... Rd3 {[%clk 0:01:20]} 31. Rc8+ {[%clk 0:00:09.7]} 31...
Rxc8 {[%clk 0:00:51.3]} 32. Rxc8+ {[%clk 0:00:10.6]} 32... Kg7 {[%clk
0:00:52.2]} 33. Rc7 {[%clk 0:00:11.5]} 33... Rxd4 {[%clk 0:00:41]} 34. Rxb7
{[%clk 0:00:11]} 34... Rd2+ {[%clk 0:00:30.3]} 35. Kf3 {[%clk 0:00:10.5]} 35...
Rxa2 {[%clk 0:00:30]} 36. g4 {[%clk 0:00:09.1]} 36... h6 {[%clk 0:00:27.8]} 37.
Rb8 {[%clk 0:00:07.5]} 37... Rh2 {[%clk 0:00:24.3]} 38. Kg3 {[%clk 0:00:07.6]}
38... Rb2 {[%clk 0:00:24.9]} 39. Kf3 {[%clk 0:00:06.5]} 39... a5 {[%clk
0:00:24.9]} 40. Rb5 {[%clk 0:00:06.6]} 40... Kg6 {[%clk 0:00:21.1]} 41. h4
{[%clk 0:00:05.3]} 41... h5 {[%clk 0:00:20.7]} 42. g5 {[%clk 0:00:04.7]} 42...
Rh2 {[%clk 0:00:17.9]} 43. Kg3 {[%clk 0:00:04.7]} 43... Rb2 {[%clk 0:00:17.3]}
44. Kf3 {[%clk 0:00:05.1]} 44... Kf5 {[%clk 0:00:17.5]} 45. Rb7 {[%clk 0:00:05]}
45... Kg6 {[%clk 0:00:17.3]} 46. Rb5 {[%clk 0:00:05.1]} 1/2-1/2

[Event "*** SCC Grand Prix: Titled Tuesday Blitz"]
[Site "Chess.com"]
[Date "2020.06.02"]
[Round "9"]
[White "RobPeresian"]
[Black "EfrenRamos1"]
[Result "1-0"]
[WhiteElo "2381"]
[BlackElo "2198"]
[TimeControl "180+1"]
[EndTime "11:47:56 PDT"]
[Termination "RobPeresian won on time"]

1. e4 {[%clk 0:03:00.9]} 1... c5 {[%clk 0:02:59.1]} 2. Bc4 {[%clk 0:02:58.1]}
2... e6 {[%clk 0:02:53.5]} 3. Nc3 {[%clk 0:02:57.4]} 3... Nc6 {[%clk 0:02:50.8]}
4. a3 {[%clk 0:02:56.8]} 4... d6 {[%clk 0:02:45.5]} 5. Nf3 {[%clk 0:02:56.1]}
5... g6 {[%clk 0:02:44.6]} 6. d3 {[%clk 0:02:56.2]} 6... Bg7 {[%clk 0:02:43.8]}
7. O-O {[%clk 0:02:56.2]} 7... Nge7 {[%clk 0:02:40.5]} 8. Ba2 {[%clk 0:02:56.1]}
8... h6 {[%clk 0:02:34.3]} 9. Be3 {[%clk 0:02:55.2]} 9... e5 {[%clk 0:02:26.1]}
10. h3 {[%clk 0:02:52.9]} 10... O-O {[%clk 0:02:15.9]} 11. Qd2 {[%clk
0:02:51.2]} 11... Kh7 {[%clk 0:02:15.4]} 12. Nh2 {[%clk 0:02:46.9]} 12... f5
{[%clk 0:02:10.1]} 13. f4 {[%clk 0:02:46.8]} 13... exf4 {[%clk 0:02:05.2]} 14.
Bxf4 {[%clk 0:02:46]} 14... g5 {[%clk 0:02:04]} 15. Be3 {[%clk 0:02:45.7]} 15...
f4 {[%clk 0:02:02]} 16. Bf2 {[%clk 0:02:45.5]} 16... Ng6 {[%clk 0:02:00.3]} 17.
Rae1 {[%clk 0:02:43.8]} 17... Nge5 {[%clk 0:01:57.6]} 18. Nd5 {[%clk 0:02:36.5]}
18... f3 {[%clk 0:01:49.9]} 19. g4 {[%clk 0:02:32.6]} 19... h5 {[%clk 0:01:45]}
20. Ne3 {[%clk 0:02:31.4]} 20... hxg4 {[%clk 0:01:37]} 21. hxg4 {[%clk
0:02:28.9]} 21... Kg6 {[%clk 0:01:36.4]} 22. c3 {[%clk 0:02:27.7]} 22... Rh8
{[%clk 0:01:33.6]} 23. Bg3 {[%clk 0:02:25.2]} 23... Rh3 {[%clk 0:01:31.6]} 24.
Nf5 {[%clk 0:02:25.2]} 24... Qh8 {[%clk 0:01:20.1]} 25. d4 {[%clk 0:02:21.5]}
25... cxd4 {[%clk 0:01:06.7]} 26. cxd4 {[%clk 0:02:21]} 26... Bxf5 {[%clk
0:01:04.1]} 27. exf5+ {[%clk 0:02:10.9]} 27... Kh6 {[%clk 0:00:58.5]} 28. Bf2
{[%clk 0:01:49]} 28... Rxh2 {[%clk 0:00:56.7]} 29. Kxh2 {[%clk 0:01:49.1]} 29...
Nxg4+ {[%clk 0:00:54.3]} 30. Kg3 {[%clk 0:01:48.9]} 30... Nxf2 {[%clk
0:00:51.5]} 31. Qxf2 {[%clk 0:01:44.6]} 31... Bxd4 {[%clk 0:00:51.2]} 32. Rh1+
{[%clk 0:01:33.1]} 32... Kg7 {[%clk 0:00:50.7]} 33. Qd2 {[%clk 0:01:25.4]} 33...
Qd8 {[%clk 0:00:37.4]} 34. Kxf3 {[%clk 0:01:19.3]} 34... Qf6 {[%clk 0:00:34]}
35. Bb1 {[%clk 0:01:06.6]} 35... Ne5+ {[%clk 0:00:22.7]} 36. Kg2 {[%clk
0:01:05]} 36... Bb6 {[%clk 0:00:16.8]} 37. Rh5 {[%clk 0:01:04.1]} 37... Nf7
{[%clk 0:00:15.9]} 38. Reh1 {[%clk 0:00:59.4]} 38... Qe5 {[%clk 0:00:13.3]} 39.
Rxg5+ {[%clk 0:00:58]} 39... Kf8 {[%clk 0:00:12.4]} 40. Rg3 {[%clk 0:00:51.4]}
40... Re8 {[%clk 0:00:11.8]} 41. Rf3 {[%clk 0:00:47.5]} 41... Qe2+ {[%clk
0:00:11.6]} 42. Qxe2 {[%clk 0:00:47.7]} 42... Rxe2+ {[%clk 0:00:12.5]} 43. Kg3
{[%clk 0:00:48.2]} 43... Rxb2 {[%clk 0:00:13.3]} 44. f6 {[%clk 0:00:45.7]} 44...
Bd4 {[%clk 0:00:13.4]} 45. Be4 {[%clk 0:00:43.1]} 45... Be5+ {[%clk 0:00:13.6]}
46. Kg4 {[%clk 0:00:42.7]} 46... Rg2+ {[%clk 0:00:12.5]} 47. Kh4 {[%clk
0:00:42.7]} 47... Rg8 {[%clk 0:00:09.8]} 48. Rc1 {[%clk 0:00:39.9]} 48... Rh8+
{[%clk 0:00:09.5]} 49. Kg4 {[%clk 0:00:40]} 49... Nh6+ {[%clk 0:00:07.4]} 50.
Kg5 {[%clk 0:00:38.5]} 50... Nf7+ {[%clk 0:00:07.9]} 51. Kf5 {[%clk 0:00:38.7]}
51... Rh5+ {[%clk 0:00:05.8]} 52. Kg4 {[%clk 0:00:33.6]} 52... Rg5+ {[%clk
0:00:03.5]} 53. Kh4 {[%clk 0:00:33.7]} 53... Ke8 {[%clk 0:00:01.8]} 54. Rc8+
{[%clk 0:00:31.5]} 54... Kd7 {[%clk 0:00:01.8]} 55. Rf8 {[%clk 0:00:32.1]} 1-0

[Event "*** SCC Grand Prix: Titled Tuesday Blitz"]
[Site "Chess.com"]
[Date "2020.06.02"]
[Round "9"]
[White "Msb2"]
[Black "Sibelephant"]
[Result "1/2-1/2"]
[WhiteElo "2857"]
[BlackElo "3154"]
[TimeControl "180+1"]
[EndTime "11:47:57 PDT"]
[Termination "Game drawn by repetition"]

1. d4 {[%clk 0:03:00.9]} 1... d5 {[%clk 0:03:00.3]} 2. c4 {[%clk 0:03:01.2]}
2... c6 {[%clk 0:03:00.8]} 3. Nc3 {[%clk 0:03:01.6]} 3... Nf6 {[%clk 0:03:00.9]}
4. e3 {[%clk 0:03:02.1]} 4... g6 {[%clk 0:03:00.6]} 5. Nf3 {[%clk 0:03:01.8]}
5... Bg7 {[%clk 0:03:01]} 6. Be2 {[%clk 0:03:02.4]} 6... O-O {[%clk 0:03:01.5]}
7. O-O {[%clk 0:03:03.1]} 7... e6 {[%clk 0:03:01.2]} 8. b3 {[%clk 0:03:01.1]}
8... b6 {[%clk 0:03:00.7]} 9. Qd2 {[%clk 0:03:00.8]} 9... Nbd7 {[%clk
0:02:52.6]} 10. Rd1 {[%clk 0:03:00.4]} 10... Re8 {[%clk 0:02:50.7]} 11. Ba3
{[%clk 0:02:59.5]} 11... Bb7 {[%clk 0:02:44.5]} 12. h3 {[%clk 0:02:59.1]} 12...
Ne4 {[%clk 0:02:30.1]} 13. Qc2 {[%clk 0:02:39.7]} 13... Nxc3 {[%clk 0:02:25.5]}
14. Qxc3 {[%clk 0:02:40.6]} 14... c5 {[%clk 0:02:25.8]} 15. Rac1 {[%clk
0:02:34.1]} 15... Rc8 {[%clk 0:02:25.2]} 16. Qd2 {[%clk 0:02:15.4]} 16... cxd4
{[%clk 0:01:50.4]} 17. Nxd4 {[%clk 0:02:14.2]} 17... Nc5 {[%clk 0:01:49]} 18.
Bf3 {[%clk 0:01:49.1]} 18... e5 {[%clk 0:01:16.5]} 19. Nc2 {[%clk 0:01:15.7]}
19... e4 {[%clk 0:01:05.7]} 20. Be2 {[%clk 0:01:15.2]} 20... Nd3 {[%clk
0:00:57.6]} 21. Bxd3 {[%clk 0:01:03.6]} 21... exd3 {[%clk 0:00:58.1]} 22. Qxd3
{[%clk 0:01:04.1]} 22... dxc4 {[%clk 0:00:58.7]} 23. Qxd8 {[%clk 0:00:56.5]}
23... Rexd8 {[%clk 0:00:59]} 24. Rxd8+ {[%clk 0:00:57.3]} 24... Rxd8 {[%clk
0:00:59]} 25. bxc4 {[%clk 0:00:58]} 25... Rd3 {[%clk 0:00:51.6]} 26. Bb4 {[%clk
0:00:53.2]} 26... Rd7 {[%clk 0:00:26.7]} 27. Ne1 {[%clk 0:00:46.3]} 27... Rc7
{[%clk 0:00:17.5]} 28. Nf3 {[%clk 0:00:26.2]} 28... Bd5 {[%clk 0:00:05.6]} 29.
Nd2 {[%clk 0:00:25.7]} 29... b5 {[%clk 0:00:04.8]} 30. Bc3 {[%clk 0:00:10.5]}
30... Bxc3 {[%clk 0:00:03.3]} 31. Rxc3 {[%clk 0:00:11.4]} 31... bxc4 {[%clk
0:00:03.6]} 32. e4 {[%clk 0:00:11.3]} 32... Be6 {[%clk 0:00:04.2]} 33. Kf1
{[%clk 0:00:07.7]} 33... Rc5 {[%clk 0:00:03.1]} 34. Ke2 {[%clk 0:00:06.6]} 34...
Ra5 {[%clk 0:00:03.7]} 35. a3 {[%clk 0:00:06.7]} 35... Kf8 {[%clk 0:00:03.6]}
36. Ke3 {[%clk 0:00:07.3]} 36... Ke7 {[%clk 0:00:04]} 37. Kd4 {[%clk 0:00:07.5]}
37... Ra4 {[%clk 0:00:04.3]} 38. Kc5 {[%clk 0:00:06.6]} 38... Kd8 {[%clk
0:00:02.5]} 39. f4 {[%clk 0:00:06.2]} 39... f6 {[%clk 0:00:02.3]} 40. Kb5 {[%clk
0:00:05.1]} 40... Bd7+ {[%clk 0:00:02.1]} 41. Kc5 {[%clk 0:00:05.7]} 41... Be6
{[%clk 0:00:02.8]} 42. g4 {[%clk 0:00:06.2]} 42... Ke7 {[%clk 0:00:03]} 43. f5
{[%clk 0:00:05.1]} 43... Bf7 {[%clk 0:00:03.4]} 44. Kb5 {[%clk 0:00:03.6]} 44...
Be8+ {[%clk 0:00:03]} 45. Kc5 {[%clk 0:00:04.1]} 45... Bf7 {[%clk 0:00:03.5]}
46. Kc6 {[%clk 0:00:03.1]} 46... Be8+ {[%clk 0:00:03.2]} 47. Kc5 {[%clk
0:00:02.6]} 47... Bf7 {[%clk 0:00:03.7]} 1/2-1/2